lending/lending_fUSD_20251022
["ID","MTS","AMOUNT","RATE_DAILY","PERIOD"]
[392025340,1761108639830,-317.48308928,0.00026532,2]
[392025357,1761108639985,-682.51691072,0.00026532,2]
[392025359,1761108639995,-988.35702782,0.00026532,2]
[392025536,1761108646150,-500.0,0.00025839,2]
[392025537,1761108646159,-500.0,0.00025839,2]
[392025538,1761108646169,-150.0,0.00025839,2]
[392025539,1761108646179,-500.0,0.00025839,2]
[392025540,1761108646188,-551.83234738,0.00025839,2]
[392025541,1761108646197,-500.0,0.00025839,2]
[392025542,1761108646206,-500.0,0.00025839,2]
[392025543,1761108646215,-500.0,0.00025839,2]
[392025544,1761108646225,-500.0,0.00025839,2]
[392025545,1761108646234,-11.64297218,0.00026532,2]
[392025546,1761108646243,-644.37767714,0.00026532,2]
[392025552,1761108664915,2500.0,0.00028423,120]
[392025553,1761108665012,2500.0,0.00026185,120]
[392025554,1761108665117,1007.1782178,0.00026428,120]
[392025555,1761108730772,200.0,0.00034272,30]
[392025556,1761108731218,201.31178177,0.00034272,30]
[392025571,1761109138312,2709.01949492,0.00034274,33]
[392025575,1761109371402,1221.23,0.00025862,120]
[392025680,1761109832015,-250.0,0.00017,2]
[392025681,1761109832030,-150.0,0.00017,2]
[392025682,1761109832039,-153.0,0.00020399,2]
[392025683,1761109832049,-153.0,0.00020399,2]
[392025684,1761109832058,-153.0,0.00020399,2]
[392025685,1761109832067,-153.0,0.00020399,2]
[392025686,1761109832077,-153.0,0.00020399,2]
[392025687,1761109832087,-153.0,0.00020399,2]
[392025688,1761109832096,-153.0,0.00020399,2]
[392025689,1761109832106,-153.0,0.00020399,2]
[392025690,1761109832117,-153.0,0.00020399,2]
[392025691,1761109832128,-153.0,0.00020399,2]
[392025692,1761109832137,-153.0,0.00020399,2]
[392025693,1761109832147,-153.0,0.00020399,2]
[392025694,1761109832156,-153.0,0.00020399,2]
[392025695,1761109832166,-153.0,0.00020399,2]
[392025696,1761109832175,-206.71,0.00022511,2]
[392025697,1761109832185,-476.13251256,0.000231,2]
[392025698,1761109832195,-291.73485534,0.00024121,2]
[392025699,1761109832205,-151.0,0.00024121,2]
[392025700,1761109832215,-153.31782513,0.00024121,2]
[392025701,1761109832224,-196.77,0.00024658,2]
[392025702,1761109832234,-962.15896415,0.0002472,2]
[392025703,1761109832255,-303.03453619,0.0002472,2]
[392025704,1761109832264,-596.96546381,0.000249,2]
[392025705,1761109832276,-414.03453619,0.000249,2]
[392025706,1761109832287,-1000.0,0.00025192,2]
[392025707,1761109832296,-3945.26877481,0.0002522,2]
[392025708,1761109832307,-1054.73122519,0.0002522,2]
[392025709,1761109832317,-233.6113,0.000257,2]
[392025710,1761109832327,-616.2693,0.000257,2]
[392025711,1761109832338,-2134.6289,0.000257,2]
[392025712,1761109832348,-959.01,0.00025778,2]
[392025713,1761109832358,-711.08,0.00025778,2]
[392025714,1761109832368,-695.92,0.00025778,2]
[392025715,1761109832378,-103.88914748,0.00025778,2]
[392025716,1761109832389,-592.03085252,0.00025778,2]
[392025717,1761109832399,-695.92,0.00025778,2]
[392025718,1761109832408,-613.38857846,0.00025778,2]
[392025719,1761109832422,-82.53142154,0.00025778,2]
[392025720,1761109832435,-949.84,0.00025779,2]
[392025721,1761109832445,-2751.0,0.00025799,2]
[392025722,1761109832455,-500.0,0.00025799,2]
[392025723,1761109832465,-214.94842211,0.00025799,2]
[392025725,1761109832477,-285.05157789,0.00025799,2]
[392025727,1761109832487,-500.0,0.00025799,2]
[392025730,1761109832496,-500.0,0.00025799,2]
[392025732,1761109832512,-500.0,0.00025799,2]
[392025734,1761109832523,-500.0,0.00025799,2]
[392025736,1761109832532,-500.0,0.00025799,2]
[392025738,1761109832543,-500.0,0.00025799,2]
[392025740,1761109832553,-500.0,0.00025799,2]
[392025742,1761109832563,-500.0,0.00025799,2]
[392025744,1761109832572,-500.0,0.00025799,2]
[392025746,1761109832582,-500.0,0.00025799,2]
[392025748,1761109832592,-409.13259582,0.00025799,2]
[392025749,1761109832602,-500.0,0.00025799,2]
[392025751,1761109832611,-500.0,0.00025799,2]
[392025753,1761109832621,-500.0,0.00025799,2]
[392025755,1761109832631,-500.0,0.00025799,2]
[392025757,1761109832641,-500.0,0.00025799,2]
[392025759,1761109832651,-78103.1649953,0.000258,5]
[392025761,1761109832663,-21760.0,0.000258,5]
[392025781,1761109838236,-35399.31937668,0.000258,5]
[392025782,1761109838246,-150.0,0.00025983,2]
[392025783,1761109838255,-2274.18,0.00026147,2]
[392025784,1761109838264,-503.77449445,0.000262,2]
[392025785,1761109838273,-14.83450547,0.00026214,2]
[392025786,1761109838303,-185.16549453,0.00026214,2]
[392025787,1761109838313,-150.0,0.00026243,2]
[392025788,1761109838322,-792.23450547,0.00026445,2]
[392025967,1761109840011,-4218.4131377,0.00026445,2]
[392025970,1761109840022,-1916.09302626,0.00026445,2]
[392025982,1761109840130,-12240.45125657,0.00026445,2]
[392025984,1761109840139,-1083.0,0.00026488,2]
[392025986,1761109840148,-1083.0,0.00026494,2]
[392025988,1761109840158,-150.0,0.00026507,4]
[392025990,1761109840167,-150.0,0.00026507,4]
[392025992,1761109840176,-150.0,0.00026507,4]
[392025995,1761109840195,-166.99627086,0.00026507,4]
[392025997,1761109840206,-220.19024347,0.00026507,4]
[392025999,1761109840216,-202.84707978,0.00026507,4]
[392026001,1761109840225,-151.3060737,0.00026507,4]
[392026003,1761109840235,-158.23556378,0.00026507,4]
[392026005,1761109840244,-156.2684648,0.00026507,4]
[392026007,1761109840254,-197.08007905,0.00026531,2]
[392026009,1761109840263,-160.44161073,0.00026531,2]
[392026011,1761109840272,-630.67130503,0.00026531,2]
[392026013,1761109840282,-155.675,0.00026531,2]
[392026015,1761109840291,-500.0,0.00026531,2]
[392026017,1761109840301,-500.0,0.00026531,2]
[392026019,1761109840310,-200.0,0.00026531,2]
[392026021,1761109840320,-172.4872033,0.00026531,2]
[392026023,1761109840330,-150.0,0.00026531,2]
[392026025,1761109840339,-500.0,0.00026531,2]
[392026028,1761109840349,-500.0,0.00026531,2]
[392026030,1761109840358,-150.0,0.00026531,2]
[392026032,1761109840367,-1000.0,0.00026532,2]
[392026034,1761109840377,-356.0,0.00026532,2]
[392026036,1761109840387,-1000.0,0.00026532,2]
[392026038,1761109840397,-1000.0,0.00026532,2]
[392026040,1761109840414,-1000.0,0.00026532,2]
[392026042,1761109840424,-1000.0,0.00026532,2]
[392026044,1761109840434,-1000.0,0.00026532,2]
[392026046,1761109840443,-1000.0,0.00026532,2]
[392026048,1761109840453,-1000.0,0.00026532,2]
[392026078,1761109840712,-1000.0,0.00026532,2]
[392026082,1761109840739,-1000.0,0.00026532,2]
[392026084,1761109840749,-1000.0,0.00026532,2]
[392026086,1761109840758,-1000.0,0.00026532,2]
[392026088,1761109840767,-1000.0,0.00026532,2]
[392026090,1761109840777,-1000.0,0.00026532,2]
[392026092,1761109840786,-1000.0,0.00026532,2]
[392026094,1761109840795,-1000.0,0.00026532,2]
[392026096,1761109840804,-1000.0,0.00026532,2]
[392026098,1761109840813,-1000.0,0.00026532,2]
[392026100,1761109840823,-1000.0,0.00026532,2]
[392026102,1761109840831,-1000.0,0.00026532,2]
[392026104,1761109840841,-1000.0,0.00026532,2]
[392026106,1761109840851,-1000.0,0.00026532,2]
[392026108,1761109840859,-1000.0,0.00026532,2]
[392026110,1761109840868,-1000.0,0.00026532,2]
[392026112,1761109840878,-1000.0,0.00026532,2]
[392026114,1761109840887,-1000.0,0.00026532,2]
[392026116,1761109840896,-1000.0,0.00026532,2]
[392026118,1761109840905,-1000.0,0.00026532,2]
[392026120,1761109840914,-1000.0,0.00026532,2]
[392026122,1761109840924,-1000.0,0.00026532,2]
[392026124,1761109840933,-1000.0,0.00026532,2]
[392026126,1761109840941,-1000.0,0.00026532,2]
[392026128,1761109840951,-1000.0,0.00026532,2]
[392026130,1761109840960,-1000.0,0.00026532,2]
[392026132,1761109840969,-1000.0,0.00026532,2]
[392026134,1761109840978,-1000.0,0.00026532,2]
[392026136,1761109840987,-1000.0,0.00026532,2]
[392026138,1761109840996,-520.86685502,0.00026532,2]
[392026141,1761109841015,-303.94,0.00026532,2]
[392026143,1761109841027,-175.19314498,0.00026532,2]
[392026145,1761109841040,-1000.0,0.00026532,2]
[392026148,1761109841049,-36.40880532,0.00026532,2]
[392026151,1761109841076,-740.42271886,0.00026532,2]
[392026356,1761109843078,-223.16847582,0.00026532,2]
[392026358,1761109843088,-193.41749146,0.00026532,2]
[392026368,1761109843190,-806.58250854,0.00026532,2]
[392026370,1761109843202,-1000.0,0.00026532,2]
[392026371,1761109843212,-1000.0,0.00026532,2]
[392026373,1761109843222,-1000.0,0.00026532,2]
[392026375,1761109843233,-1000.0,0.00026532,2]
[392026377,1761109843243,-1000.0,0.00026532,2]
[392026379,1761109843253,-1000.0,0.00026532,2]
[392026381,1761109843263,-1000.0,0.00026532,2]
[392026383,1761109843272,-1000.0,0.00026532,2]
[392026385,1761109843281,-1000.0,0.00026532,2]
[392026387,1761109843290,-1000.0,0.00026532,2]
[392026389,1761109843300,-1000.0,0.00026532,2]
[392026391,1761109843309,-1000.0,0.00026532,2]
[392026393,1761109843319,-1000.0,0.00026532,2]
[392026395,1761109843327,-1000.0,0.00026532,2]
[392026397,1761109843337,-1000.0,0.00026532,2]
[392026399,1761109843346,-1000.0,0.00026532,2]
[392026400,1761109843355,-1000.0,0.00026532,2]
[392026402,1761109843365,-1000.0,0.00026532,2]
[392026404,1761109843375,-1000.0,0.00026532,2]
[392026406,1761109843384,-1000.0,0.00026532,2]
[392026408,1761109843394,-1000.0,0.00026532,2]
[392026410,1761109843403,-1000.0,0.00026532,2]
[392026412,1761109843412,-1000.0,0.00026532,2]
[392026414,1761109843422,-1000.0,0.00026532,2]
[392026416,1761109843431,-1000.0,0.00026532,2]
[392026418,1761109843440,-1000.0,0.00026532,2]
[392026420,1761109843449,-1000.0,0.00026532,2]
[392026422,1761109843459,-1000.0,0.00026532,2]
[392026423,1761109843468,-1000.0,0.00026532,2]
[392026425,1761109843477,-1000.0,0.00026532,2]
[392026427,1761109843487,-1000.0,0.00026532,2]
[392026429,1761109843495,-1000.0,0.00026532,2]
[392026431,1761109843505,-1000.0,0.00026532,2]
[392026433,1761109843514,-1000.0,0.00026532,2]
[392026435,1761109843523,-1000.0,0.00026532,2]
[392026437,1761109843533,-1000.0,0.00026532,2]
[392026439,1761109843542,-1000.0,0.00026532,2]
[392026441,1761109843551,-1000.0,0.00026532,2]
[392026443,1761109843560,-1000.0,0.00026532,2]
[392026445,1761109843569,-1000.0,0.00026532,2]
[392026447,1761109843578,-1000.0,0.00026532,2]
[392026449,1761109843587,-1000.0,0.00026532,2]
[392026451,1761109843596,-1000.0,0.00026532,2]
[392026453,1761109843606,-1000.0,0.00026532,2]
[392026454,1761109843615,-1000.0,0.00026532,2]
[392026456,1761109843624,-1000.0,0.00026532,2]
[392026458,1761109843634,-1000.0,0.00026532,2]
[392026460,1761109843643,-1000.0,0.00026532,2]
[392026462,1761109843652,-1000.0,0.00026532,2]
[392026464,1761109843661,-1000.0,0.00026532,2]
[392026466,1761109843670,-290.0,0.00026532,2]
[392026468,1761109843680,-277.67,0.00026532,2]
[392026470,1761109843689,-1761.92123,0.00026532,2]
[392026472,1761109843699,-1082.0,0.00026585,2]
[392026474,1761109843708,-500.0,0.00026586,2]
[392026476,1761109843717,-150.0,0.00026586,2]
[392026478,1761109843726,-500.0,0.00026586,2]
[392026479,1761109843735,-1082.0,0.0002662,2]
[392026481,1761109843744,-166.66,0.00026622,30]
[392026483,1761109843754,-500.0,0.00026641,2]
[392026485,1761109843764,-150.0,0.00026641,2]
[392026487,1761109843774,-500.0,0.00026641,2]
[392026489,1761109843783,-312.78,0.00026676,2]
[392026491,1761109843792,-1083.0,0.00026683,2]
[392026493,1761109843801,-500.0,0.00026695,2]
[392026495,1761109843810,-150.0,0.00026695,2]
[392026497,1761109843820,-500.0,0.00026695,2]
[392026499,1761109843829,-160.71,0.00026738,2]
[392026501,1761109843838,-500.0,0.0002675,2]
[392026502,1761109843847,-203.9261723,0.0002675,2]
[392026504,1761109843857,-500.0,0.0002675,2]
[392026506,1761109843866,-1083.0,0.00026753,2]
[392026508,1761109843875,-192.55336397,0.00026794,2]
[392026510,1761109843885,-500.0,0.00026805,2]
[392026512,1761109843895,-500.0,0.00026805,2]
[392026514,1761109843904,-277.67,0.00026805,2]
[392026516,1761109843914,-500.0,0.0002686,2]
[392026518,1761109843923,-500.0,0.0002686,2]
[392026520,1761109843933,-250.0,0.0002687,2]
[392026522,1761109843942,-500.0,0.00026915,2]
[392026524,1761109843951,-1082.0,0.00026948,7]
[392026525,1761109843960,-247.8711639,0.00026969,2]
[392026527,1761109843970,-1082.0,0.00027004,2]
[392026529,1761109843979,-277.69720165,0.00027079,2]
[392026531,1761109843989,-606.71,0.00027123,2]
[392026533,1761109843998,-166.66,0.00027139,30]
[392026534,1761109844007,-11985.0244211,0.00027157,2]
[392026535,1761109844016,-1082.0,0.00027167,2]
[392026536,1761109844025,-4797.0,0.00027191,7]
[392026537,1761109844034,-1082.0,0.00027213,2]
[392026538,1761109844043,-1082.0,0.00027222,2]
[392026539,1761109844053,-500.0,0.000273,2]
[392026540,1761109844062,-500.0,0.000273,2]
[392026541,1761109844071,-500.0,0.000273,2]
[392026542,1761109844080,-500.0,0.000273,2]
[392026543,1761109844089,-504.73590893,0.000273,2]
[392026544,1761109844099,-547.99297014,0.000273,2]
[392026545,1761109844108,-500.0,0.000273,2]
[392026546,1761109844119,-500.0,0.000273,2]
[392026547,1761109844129,-176.73318431,0.000273,2]
[392026549,1761109844139,-847.728,0.00027367,16]
[392026550,1761109844148,-4296.93962186,0.00027383,2]
[392026552,1761109844158,-11985.0244211,0.00027387,2]
[392026554,1761109844167,-150.0,0.00027397,60]
[392026557,1761109844177,-318.79,0.00027397,30]
[392026558,1761109844186,-4946.41,0.00027397,2]
[392026560,1761109844196,-9723.79,0.00027397,2]
[392026563,1761109844207,-999.99,0.00027397,2]
[392026564,1761109844216,-565.0,0.00027402,2]
[392026566,1761109844226,-274.02345825,0.00027452,60]
[392026568,1761109844236,-1082.0,0.00027468,2]
[392026570,1761109844245,-1082.0,0.00027483,2]
[392026572,1761109844255,-196.77,0.0002749,2]
[392026574,1761109844264,-165.25,0.00027514,2]
[392026576,1761109844274,-1082.0,0.00027552,2]
[392026578,1761109844284,-564.0,0.00027665,2]
[392026580,1761109844293,-199.0,0.00027671,7]
[392026583,1761109844303,-152.0,0.00027671,3]
[392026584,1761109844312,-171.41,0.00027753,2]
[392026586,1761109844321,-1094.46,0.00027753,2]
[392026589,1761109844331,-2426.62,0.00027753,2]
[392026591,1761109844341,-414.15,0.00027753,2]
[392026593,1761109844350,-503.60991166,0.00027848,2]
[392026594,1761109844359,-526.5697955,0.00027901,2]
[392026597,1761109844369,-322.5098371,0.00027945,8]
[392026599,1761109844379,-168.43,0.00027945,2]
[392026601,1761109844388,-4296.93962178,0.00027982,2]
[392026603,1761109844397,-4954.05926989,0.00028,2]
[392026605,1761109844407,-200.0,0.00028023,2]
[392026606,1761109844415,-167.0563543,0.0002806,2]
[392026609,1761109844425,-11985.0244211,0.000281,2]
[392026611,1761109844435,-150.0,0.0002811,2]
[392026613,1761109844444,-1200.82,0.0002811,2]
[392026615,1761109844453,-150.0,0.0002811,2]
[392026617,1761109844463,-151.14,0.0002811,2]
[392026619,1761109844473,-2401.34,0.0002811,2]
[392026620,1761109844481,-150.16,0.0002811,2]
[392026622,1761109844491,-1200.82,0.0002811,2]
[392026624,1761109844500,-338.99,0.0002811,2]
[392026627,1761109844510,-336.86,0.0002811,2]
[392026629,1761109844519,-333.53,0.0002811,2]
[392026631,1761109844528,-168.43,0.0002811,2]
[392026633,1761109844538,-168.43,0.0002811,2]
[392026635,1761109844547,-828.1,0.0002811,2]
[392026637,1761109844556,-1098.05,0.0002811,2]
[392026639,1761109844565,-1199.92,0.0002811,2]
[392026641,1761109844574,-414.15,0.0002811,2]
[392026643,1761109844583,-168.87875345,0.00028135,2]
[392026645,1761109844593,-564.0,0.00028268,7]
[392026646,1761109844602,-200.0,0.00028268,2]
[392026649,1761109844611,-150.0,0.00028314,2]
[392026650,1761109844621,-150.339,0.00028314,2]
[392026653,1761109844630,-150.0,0.00028314,2]
[392026655,1761109844640,-150.562,0.00028314,2]
[392026656,1761109844649,-1000.0,0.00028341,2]
[392026658,1761109844659,-11985.0244211,0.00028347,2]
[392026660,1761109844668,-562.0,0.00028354,2]
[392026662,1761109844678,-254.981,0.00028357,2]
[392026664,1761109844686,-250.0,0.00028357,2]
[392026666,1761109844696,-188.259,0.00028357,2]
[392026668,1761109844705,-150.0,0.00028357,2]
[392026670,1761109844714,-150.522,0.00028357,2]
[392026672,1761109844724,-3411.0,0.00028357,2]
[392026674,1761109844733,-2052.0,0.00028357,2]
[392026676,1761109844743,-818.0,0.00028357,2]
[392026678,1761109844752,-572.0,0.00028357,2]
[392026680,1761109844762,-1318.298,0.00028357,2]
[392026682,1761109844772,-605.0,0.00028357,2]
[392026685,1761109844782,-1591.0,0.00028357,2]
[392026687,1761109844791,-821.0,0.00028357,2]
[392026689,1761109844801,-1269.0,0.00028357,2]
[392026691,1761109844810,-280.377519,0.00028357,15]
[392026692,1761109844820,-151.0,0.00028357,30]
[392026694,1761109844830,-2592.0,0.00028357,2]
[392026696,1761109844839,-1803.172,0.00028357,2]
[392026699,1761109844849,-6453.0,0.00028357,2]
[392026701,1761109844858,-560.37,0.00028357,2]
[392026703,1761109844868,-562.0,0.00028495,2]
[392026704,1761109844878,-1761.92123,0.00028532,2]
[392026706,1761109844888,-414.15,0.00028575,2]
[392026708,1761109844897,-4296.93962178,0.00028581,2]
[392026710,1761109844907,-4615.5,0.00028623,10]
[392026712,1761109844917,-562.0,0.00028688,2]
[392026715,1761109844926,-562.0,0.00028719,7]
[392026716,1761109844936,-11985.0244211,0.0002874,2]
[392026719,1761109844946,-13091.7603348,0.0002875,2]
[392026721,1761109844955,-151.0,0.0002875,30]
[392026723,1761109844964,-6130.88560805,0.0002876,2]
[392026725,1761109844973,-372.79494855,0.00028787,2]
[392026727,1761109844983,-168.87875345,0.00028813,2]
[392026729,1761109844993,-11985.0244211,0.0002889,2]
[392026731,1761109845002,-713.0,0.000289,7]
[392026733,1761109845012,-9955.9418,0.000289,2]
[392026735,1761109845021,-297.47002631,0.000289,2]
[392026737,1761109845030,-336.23,0.00028932,2]
[392026739,1761109845039,-176.26,0.00028932,2]
[392026741,1761109845048,-176.26,0.00028932,2]
[392026742,1761109845057,-176.26,0.00028932,2]
[392026744,1761109845066,-192.31,0.00028932,2]
[392026747,1761109845076,-47940.0976846,0.0002897,2]
[392026749,1761109845085,-500.0,0.00028973,5]
[392026751,1761109845095,-500.0,0.00028973,5]
[392026753,1761109845104,-83895.170948,0.0002898,2]
[392026754,1761109845113,-151.0,0.0002899,30]
[392026757,1761109845125,-95880.1953692,0.0002899,2]
[392026758,1761109845135,-583.0,0.00029,5]
[392026760,1761109845145,-171384.44097173,0.00029,2]
[392026762,1761109845154,-198101.27881735,0.00029,2]
[392026764,1761109845164,-151.0,0.00029,30]
[392026766,1761109845173,-151.0,0.00029,30]
[392026768,1761109845184,-562.0,0.00029022,2]
[392026770,1761109845193,-152.0,0.00029076,4]
[392026772,1761109845204,-562.0,0.00029083,2]
[392026774,1761109845213,-4296.93962178,0.00029181,2]
[392026776,1761109845223,-847.1969588,0.00029266,2]
[392026778,1761109845233,-3081.0,0.00029464,2]
[392026780,1761109845243,-222.29484011,0.0002949,2]
[392026783,1761109845252,-152.04,0.0002949,2]
[392026785,1761109845262,-168.87875345,0.00029491,15]
[392026787,1761109845271,-230902.19376638,0.000295,2]
[392026789,1761109845280,-1002.60840371,0.00029521,5]
[392026791,1761109845289,-1000.0,0.00029521,5]
[392026793,1761109845299,-1292.79959273,0.00029604,4]
[392026795,1761109845308,-206.71,0.00029639,2]
[392026797,1761109845317,-532.13515562,0.00029679,7]
[392026799,1761109845326,-500.0,0.00029679,7]
[392026801,1761109845335,-169.34231845,0.00029679,7]
[392026802,1761109845343,-500.0,0.00029679,7]
[392026804,1761109845352,-500.0,0.00029679,7]
[392026806,1761109845361,-500.0,0.00029679,7]
[392026808,1761109845370,-500.0,0.00029679,7]
[392026811,1761109845380,-408.40625967,0.00029679,7]
[392026812,1761109845389,-500.0,0.00029679,7]
[392026814,1761109845398,-500.0,0.00029679,7]
[392026816,1761109845408,-500.0,0.00029679,7]
[392026818,1761109845417,-500.0,0.00029679,7]
[392026820,1761109845427,-500.0,0.00029679,7]
[392026822,1761109845436,-500.0,0.00029679,7]
[392026824,1761109845445,-709.12973057,0.00029679,7]
[392026826,1761109845455,-500.0,0.00029679,7]
[392026828,1761109845464,-500.0,0.00029679,7]
[392026831,1761109845474,-500.0,0.00029679,7]
[392026833,1761109845483,-500.0,0.00029679,7]
[392026835,1761109845493,-500.0,0.00029679,7]
[392026837,1761109845502,-500.0,0.00029679,7]
[392026838,1761109845511,-500.0,0.00029679,7]
[392026840,1761109845520,-892.44005182,0.00029679,7]
[392026843,1761109845530,-503.16512336,0.00029679,7]
[392026844,1761109845539,-4296.93962178,0.0002978,2]
[392026847,1761109845549,-297.47002629,0.00029789,2]
[392026849,1761109845558,-4276.778604,0.00029798,2]
[392026851,1761109845567,-1660.39478264,0.00029992,15]
[392026853,1761109845576,-162.99050684,0.0003,30]
[392026855,1761109845585,-9149.93,0.0003,7]
[392026857,1761109845594,-189.0351931,0.00030002,2]
[392026858,1761109845603,-413.75,0.00030055,2]
[392026861,1761109845613,-1500.0,0.00030068,5]
[392026863,1761109845623,-286.68710496,0.0003013,2]
[392026865,1761109845632,-4000.0,0.00030137,30]
[392026867,1761109845641,-284.87,0.00030137,30]
[392026869,1761109845651,-543.0,0.00030137,120]
[392026871,1761109845660,-168.87875345,0.00030168,15]
[392026873,1761109845669,-719.02,0.000302,30]
[392026875,1761109845679,-4719.66,0.000303,2]
[392026877,1761109845689,-647.73,0.000303,7]
[392026879,1761109845699,-196.77,0.00030323,2]
[392026881,1761109845708,-4296.93962178,0.00030379,2]
[392026883,1761109845718,-152.0,0.0003048,5]
[392026885,1761109845729,-1761.92123,0.00030532,2]
[392026887,1761109845738,-954.2782948,0.00030547,2]
[392026889,1761109845747,-165.25,0.00030571,2]
[392026891,1761109845756,-1000.0,0.00030581,2]
[392026893,1761109845765,-734.90166428,0.00030616,5]
[392026895,1761109845774,-297.47002629,0.00030678,2]
[392026897,1761109845784,-359.48,0.00030685,30]
[392026899,1761109845794,-1960.43695902,0.00030811,2]
[392026901,1761109845803,-168.87875345,0.00030846,15]
[392026903,1761109845813,-4296.93962178,0.00030978,2]
[392026905,1761109845823,-156.0,0.00031,120]
[392026907,1761109845832,-162.0,0.00031,120]
[392026909,1761109845842,-336.62,0.00031041,2]
[392026911,1761109845852,-546.93,0.00031041,2]
[392026913,1761109845861,-719.02,0.000312,30]
[392026915,1761109845870,-2009.606604,0.00031232,2]
[392026917,1761109845880,-206.71,0.00031256,2]
[392026919,1761109845893,-9149.93,0.000313,7]
[392026940,1761109846054,-647.73,0.000313,7]
[392026943,1761109846090,-150.0,0.00031314,2]
[392026945,1761109846100,-150.0,0.00031314,2]
[392026947,1761109846109,-150.0,0.00031314,2]
[392026949,1761109846122,-150.0,0.00031357,2]
[392026951,1761109846132,-150.0,0.00031357,2]
[392026953,1761109846141,-150.0,0.00031357,2]
[392026955,1761109846151,-3411.0,0.00031357,2]
[392026957,1761109846160,-2052.0,0.00031357,2]
[392026959,1761109846170,-818.0,0.00031357,2]
[392026961,1761109846180,-572.0,0.00031357,2]
[392026963,1761109846189,-1311.0,0.00031357,2]
[392026965,1761109846198,-605.0,0.00031357,2]
[392026967,1761109846208,-1591.0,0.00031357,2]
[392026969,1761109846217,-817.0,0.00031357,2]
[392026971,1761109846226,-1269.0,0.00031357,2]
[392026973,1761109846235,-2592.0,0.00031357,2]
[392026974,1761109846244,-6453.0,0.00031357,2]
[392026975,1761109846255,-557.0,0.00031357,2]
[392026976,1761109846265,-475.34,0.00031452,2]
[392026977,1761109846275,-696.1,0.00031452,2]
[392026978,1761109846284,-475.34,0.00031452,2]
[392026980,1761109846294,-696.1,0.00031452,2]
[392026981,1761109846304,-696.1,0.00031452,2]
[392026982,1761109846313,-475.34,0.00031452,2]
[392026983,1761109846322,-696.1,0.00031452,2]
[392026984,1761109846332,-696.1,0.00031452,2]
[392026985,1761109846341,-475.34,0.00031452,2]
[392026986,1761109846351,-696.1,0.00031452,2]
[392026987,1761109846360,-475.34,0.00031452,2]
[392026988,1761109846370,-475.34,0.00031452,2]
[392026989,1761109846380,-696.1,0.00031452,2]
[392026990,1761109846390,-696.1,0.00031452,2]
[392026991,1761109846400,-475.34,0.00031452,2]
[392026992,1761109846410,-696.1,0.00031452,2]
[392026993,1761109846419,-475.34,0.00031452,2]
[392026994,1761109846429,-475.34,0.00031452,2]
[392026995,1761109846439,-696.1,0.00031452,2]
[392026996,1761109846448,-696.1,0.00031452,2]
[392026997,1761109846458,-475.34,0.00031452,2]
[392026998,1761109846468,-696.1,0.00031452,2]
[392026999,1761109846477,-475.34,0.00031452,2]
[392027000,1761109846486,-696.1,0.00031452,2]
[392027001,1761109846496,-475.34,0.00031452,2]
[392027002,1761109846505,-696.1,0.00031452,2]
[392027003,1761109846515,-304.32,0.00031452,2]
[392027004,1761109846524,-696.1,0.00031452,2]
[392027005,1761109846533,-747.48,0.00031452,2]
[392027006,1761109846542,-1000.0,0.00031489,2]